[Event "Kupreichik Memorial Open 2018"]
[Site "Minsk"]
[Date "2018.06.22"]
[Round "6"]
[White "Tihonov, Jurij"]
[Black "Shvedau, Mikhail"]
[Result "1/2-1/2"]
[ECO "A81"]
[WhiteElo "2385"]
[BlackElo "1742"]
[Annotator "NA"]
[PlyCount "112"]
[EventDate "2018.06.21"]
[EventCountry "BLR"]
[SourceTitle "playchess.com"]
[Source "ChessBase"]
[SourceQuality "1"]
[TimeControl "900+10"]

1. d4 {[%emt 0:00:00]} f5 {[%emt 0:00:02]} 2. g3 {[%emt 0:00:00]} Nf6 {[%emt 0:00:04]} 3. Nh3 {[%emt 0:00:00]} e6 {[%emt 0:00:08]} 4. Bg2 {[%emt 0:00:00]} d5 {[%emt 0:00:02]} 5. O-O {[%emt 0:00:06]} Bd6 {[%emt 0:00:06]} 6. Bf4 {[%emt 0:00:04]} O-O {[%emt 0:00:06]} 7. Bxd6 {[%emt 0:00:00]} cxd6 {[%emt 0:00:22]} 8. Nf4 {[%emt 0:00:05]} g5 {[%emt 0:00:36]} 9. Nd3 {[%emt 0:00:02]} Nc6 {[%emt 0:00:02]} 10. e3 {[%emt 0:00:05]} e5 {[%emt 0:00:06]} 11. Nc3 {[%emt 0:00:16]} Be6 {[%emt 0:00:20]} 12. dxe5 {[%emt 0:00:07]} dxe5 {[%emt 0:00:04]} 13. Nc5 {[%emt 0:00:01]} Bf7 {[%emt 0:00:15]} 14. Nxb7 {[%emt 0:00:11]} Qe7 {[%emt 0:00:18]} 15. Nxd5 {[%emt 0:00:24]} Nxd5 {[%emt 0:00:05]} 16. Bxd5 {[%emt 0:00:01]} Qxb7 {[%emt 0:00:17]} 17. Qf3 {[%emt 0:00:09]} Bxd5 {[%emt 0:00:30]} 18. Qxd5+ {[%emt 0:00:02]} Rf7 {[%emt 0:00:01]} 19. Rfd1 {[%emt 0:00:08]} Rd8 {[%emt 0:00:23]} 20. Qe6 {[%emt 0:00:14]} Qc7 {[%emt 0:01:36]} 21. c4 {[%emt 0:00:15]} f4 {[%emt 0:00:15]} 22. exf4 {[%emt 0:00:19]} exf4 {[%emt 0:00:04]} 23. Rd5 {[%emt 0:00:09]} Rxd5 {[%emt 0:00:09]} 24. cxd5 {[%emt 0:00:02]} Nd4 {[%emt 0:00:15]} 25. Qe4 {[%emt 0:00:24]} fxg3 {[%emt 0:00:32]} 26. hxg3 {[%emt 0:00:02]} Nf3+ {[%emt 0:00:13]} 27. Kg2 {[%emt 0:00:05]} Qc5 {[%emt 0:00:27]} 28. Rd1 {[%emt 0:00:29]} Qd6 {[%emt 0:02:07]} 29. Qe6 {[%emt 0:00:14]} Qc5 {[%emt 0:00:18]} 30. Qe2 {[%emt 0:01:20]} Nd4 {[%emt 0:00:31]} 31. Qe8+ {[%emt 0:00:07]} Rf8 {[%emt 0:00:02]} 32. Qe4 {[%emt 0:00:13]} Nf5 {[%emt 0:01:57]} 33. Rd2 {[%emt 0:00:03]} Qd6 {[%emt 0:00:06]} 34. b4 {[%emt 0:00:09]} h5 {[%emt 0:00:15]} 35. Qe6+ {[%emt 0:01:09]} Qxe6 {[%emt 0:00:22]} 36. dxe6 {[%emt 0:00:02]} Kg7 {[%emt 0:00:01]} 37. Rd7+ {[%emt 0:00:04]} Kf6 {[%emt 0:00:01]} 38. Rxa7 {[%emt 0:00:01]} Kxe6 {[%emt 0:00:04]} 39. b5 {[%emt 0:00:01]} Rb8 {[%emt 0:00:05]} 40. a4 {[%emt 0:00:01]} Nd6 {[%emt 0:00:11]} 41. Ra6 {[%emt 0:00:27]} Ke5 {[%emt 0:00:20]} 42. b6 {[%emt 0:00:03]} Nc4 {[%emt 0:00:14]} 43. a5 {[%emt 0:00:03]} Kd5 {[%emt 0:00:01]} 44. Ra7 {[%emt 0:00:16]} Kc6 {[%emt 0:00:05]} 45. Rg7 {[%emt 0:00:18]} Nxa5 {[%emt 0:00:08]} 46. Rg6+ {[%emt 0:00:04]} Kb7 {[%emt 0:00:18]} 47. Rxg5 {[%emt 0:00:01]} Kxb6 {[%emt 0:00:01]} 48. Rxh5 {[%emt 0:00:02]} Nc6 {[%emt 0:00:03]} 49. f4 {[%emt 0:00:02]} Kc7 {[%emt 0:00:03]} 50. Rd5 {[%emt 0:00:05]} Rd8 {[%emt 0:00:04]} 51. Rh5 {[%emt 0:00:24]} Kd7 {[%emt 0:00:03]} 52. Kf3 {[%emt 0:00:01]} Ke7 {[%emt 0:00:04]} 53. g4 {[%emt 0:00:03]} Rf8 {[%emt 0:00:07]} 54. Rc5 {[%emt 0:00:05]} Nd4+ {[%emt 0:00:07]} 55. Ke4 {[%emt 0:00:02]} Ne6 {[%emt 0:00:01]} 56. Rf5 {[%emt 0:00:08]} Rxf5 {[%emt 0:00:12]} 1/2-1/2

[Event "Kupreichik Memorial Open 2018"]
[Site "Minsk"]
[Date "2018.06.22"]
[Round "6"]
[White "Barskij, Vladimir"]
[Black "Kalinin, Dmitry"]
[Result "1/2-1/2"]
[ECO "C01"]
[WhiteElo "2352"]
[BlackElo "1995"]
[Annotator "NA"]
[PlyCount "73"]
[EventDate "2018.06.21"]
[EventCountry "BLR"]
[SourceTitle "playchess.com"]
[Source "ChessBase"]
[SourceQuality "1"]
[TimeControl "900+10"]

1. e4 {[%emt 0:00:00]} e6 {[%emt 0:00:04]} 2. d4 {[%emt 0:00:00]} d5 {[%emt 0:00:05]} 3. exd5 {[%emt 0:00:00]} exd5 {[%emt 0:00:05]} 4. Nf3 {[%emt 0:00:00]} Nf6 {[%emt 0:00:09]} 5. Bd3 {[%emt 0:00:09]} Be7 {[%emt 0:00:27]} 6. O-O {[%emt 0:00:08]} O-O {[%emt 0:00:07]} 7. Re1 {[%emt 0:00:14]} Bg4 {[%emt 0:00:08]} 8. h3 {[%emt 0:00:04]} Bh5 {[%emt 0:00:01]} 9. Bg5 {[%emt 0:00:27]} Nc6 {[%emt 0:00:49]} 10. c3 {[%emt 0:00:04]} Re8 {[%emt 0:01:22]} 11. Nbd2 {[%emt 0:00:05]} Nd7 {[%emt 0:03:16]} 12. Bxe7 {[%emt 0:01:13]} Rxe7 {[%emt 0:00:12]} 13. Qb3 {[%emt 0:00:16]} Nb6 {[%emt 0:00:24]} 14. Rxe7 {[%emt 0:00:44]} Qxe7 {[%emt 0:00:36]} 15. Re1 {[%emt 0:00:03]} Qf6 {[%emt 0:00:20]} 16. Bb5 {[%emt 0:02:42]} a6 {[%emt 0:02:31]} 17. Bxc6 {[%emt 0:00:38]} Qxc6 {[%emt 0:00:01]} 18. Ne5 {[%emt 0:00:08]} Qd6 {[%emt 0:00:07]} 19. Nd3 {[%emt 0:00:32]} h6 {[%emt 0:02:27]} 20. Nc5 {[%emt 0:02:01]} Rb8 {[%emt 0:00:02]} 21. Re5 {[%emt 0:00:55]} Bg6 {[%emt 0:00:08]} 22. g3 {[%emt 0:00:11]} Qc6 {[%emt 0:02:32]} 23. h4 {[%emt 0:00:22]} Re8 {[%emt 0:00:06]} 24. Rxe8+ {[%emt 0:01:16]} Qxe8 {[%emt 0:00:01]} 25. Qd1 {[%emt 0:00:05]} Qc8 {[%emt 0:00:50]} 26. Qe2 {[%emt 0:00:50]} Kf8 {[%emt 0:00:07]} 27. b3 {[%emt 0:02:59]} Bf5 {[%emt 0:00:59]} 28. Qe5 {[%emt 0:00:23]} f6 {[%emt 0:00:10]} 29. Qf4 {[%emt 0:00:08]} Kf7 {[%emt 0:00:37]} 30. Nf1 {[%emt 0:01:05]} g5 {[%emt 0:00:03]} 31. hxg5 {[%emt 0:00:02]} hxg5 {[%emt 0:00:01]} 32. Qf3 {[%emt 0:00:31]} Bg4 {[%emt 0:00:01]} 33. Qh1 {[%emt 0:00:03]} Qf5 {[%emt 0:00:51]} 34. Ne3 {[%emt 0:01:06]} Qb1+ {[%emt 0:00:03]} 35. Kh2 {[%emt 0:00:03]} Qh7+ {[%emt 0:00:07]} 36. Kg1 {[%emt 0:00:02]} Qb1+ {[%emt 0:00:02]} 37. Kh2 {[%emt 0:00:01]} 1/2-1/2

[Event "Kupreichik Memorial Open 2018"]
[Site "Minsk"]
[Date "2018.06.22"]
[Round "6"]
[White "Nomin-Erdene, Davaademberel"]
[Black "Tsaruk, Maksim"]
[Result "1-0"]
[ECO "C97"]
[WhiteElo "2312"]
[BlackElo "1980"]
[Annotator "NA"]
[PlyCount "113"]
[EventDate "2018.06.21"]
[EventCountry "BLR"]
[SourceTitle "playchess.com"]
[Source "ChessBase"]
[SourceQuality "1"]
[TimeControl "900+10"]

1. e4 {[%emt 0:00:00]} e5 {[%emt 0:00:04]} 2. Nf3 {[%emt 0:00:00]} Nc6 {[%emt 0:00:09]} 3. Bb5 {[%emt 0:00:00]} a6 {[%emt 0:00:07]} 4. Ba4 {[%emt 0:00:00]} Nf6 {[%emt 0:00:07]} 5. O-O {[%emt 0:00:00]} b5 {[%emt 0:00:06]} 6. Bb3 {[%emt 0:00:00]} Be7 {[%emt 0:00:05]} 7. Re1 {[%emt 0:00:01]} O-O {[%emt 0:00:04]} 8. c3 {[%emt 0:00:04]} d6 {[%emt 0:00:14]} 9. h3 {[%emt 0:00:04]} Na5 {[%emt 0:00:04]} 10. Bc2 {[%emt 0:00:01]} c5 {[%emt 0:00:06]} 11. d4 {[%emt 0:00:01]} Qc7 {[%emt 0:00:05]} 12. d5 {[%emt 0:00:03]} Bd7 {[%emt 0:02:23]} 13. b3 {[%emt 0:00:20]} Rfb8 {[%emt 0:02:09]} 14. Nbd2 {[%emt 0:00:36]} Bf8 {[%emt 0:00:24]} 15. Nf1 {[%emt 0:00:33]} g6 {[%emt 0:00:04]} 16. Ng3 {[%emt 0:00:51]} Nb7 {[%emt 0:01:54]} 17. Bg5 {[%emt 0:00:46]} Ne8 {[%emt 0:00:03]} 18. Qd2 {[%emt 0:00:25]} Nd8 {[%emt 0:00:26]} 19. Nh2 {[%emt 0:00:37]} f6 {[%emt 0:04:25]} 20. Be3 {[%emt 0:01:10]} Nf7 {[%emt 0:00:07]} 21. Rf1 {[%emt 0:01:46]} Ng7 {[%emt 0:02:35]} 22. f4 {[%emt 0:00:19]} exf4 {[%emt 0:00:01]} 23. Rxf4 {[%emt 0:00:15]} Be7 {[%emt 0:00:03]} 24. Raf1 {[%emt 0:00:50]} Rf8 {[%emt 0:00:02]} 25. R4f2 {[%emt 0:01:48]} Rae8 {[%emt 0:00:07]} 26. Ne2 {[%emt 0:00:07]} Bd8 {[%emt 0:01:12]} 27. Nf3 {[%emt 0:01:48]} Qa5 {[%emt 0:01:39]} 28. Bb1 {[%emt 0:00:22]} Qc7 {[%emt 0:00:20]} 29. b4 {[%emt 0:00:12]} a5 {[%emt 0:00:39]} 30. a3 {[%emt 0:00:21]} Be7 {[%emt 0:00:13]} 31. Rd1 {[%emt 0:00:33]} Rc8 {[%emt 0:00:07]} 32. bxc5 {[%emt 0:01:12]} dxc5 {[%emt 0:00:01]} 33. Bf4 {[%emt 0:00:57]} Bd6 {[%emt 0:00:01]} 34. Bxd6 {[%emt 0:00:05]} Nxd6 {[%emt 0:00:01]} 35. Rdf1 {[%emt 0:00:26]} Rce8 {[%emt 0:00:23]} 36. Ng3 {[%emt 0:00:32]} Kh8 {[%emt 0:00:23]} 37. Qf4 {[%emt 0:00:30]} Qb8 {[%emt 0:00:12]} 38. Nh2 {[%emt 0:00:38]} g5 {[%emt 0:00:08]} 39. Qc1 {[%emt 0:00:06]} Nc4 {[%emt 0:00:06]} 40. Ne2 {[%emt 0:00:19]} Qd8 {[%emt 0:00:07]} 41. Nf3 {[%emt 0:00:34]} h6 {[%emt 0:00:20]} 42. Bd3 {[%emt 0:00:05]} Nd6 {[%emt 0:00:05]} 43. e5 {[%emt 0:00:17]} fxe5 {[%emt 0:00:10]} 44. Nxe5 {[%emt 0:00:02]} Rxf2 {[%emt 0:00:01]} 45. Ng6+ {[%emt 0:00:01]} Kg8 {[%emt 0:00:01]} 46. Rxf2 {[%emt 0:00:01]} Bf5 {[%emt 0:00:23]} 47. Qb1 {[%emt 0:00:35]} Bxd3 {[%emt 0:00:06]} 48. Qxd3 {[%emt 0:00:01]} Qd7 {[%emt 0:00:25]} 49. Ng3 {[%emt 0:00:14]} b4 {[%emt 0:00:06]} 50. axb4 {[%emt 0:00:12]} axb4 {[%emt 0:00:00]} 51. cxb4 {[%emt 0:00:35]} cxb4 {[%emt 0:00:01]} 52. Qd4 {[%emt 0:01:26]} b3 {[%emt 0:00:28]} 53. Qf6 {[%emt 0:00:26]} Ne4 {[%emt 0:00:14]} 54. Nxe4 {[%emt 0:00:12]} Rxe4 {[%emt 0:00:01]} 55. Ne5 {[%emt 0:00:36]} Qxd5 {[%emt 0:00:11]} 56. Ng4 {[%emt 0:00:09]} h5 {[%emt 0:00:16]} 57. Qf8+ {[%emt 0:00:08]} 1-0

[Event "Kupreichik Memorial Open 2018"]
[Site "Minsk"]
[Date "2018.06.22"]
[Round "6"]
[White "Tsigelnitskiy, Ilusha"]
[Black "Fedotov, Konstantin"]
[Result "1-0"]
[ECO "B12"]
[WhiteElo "2253"]
[BlackElo "2090"]
[Annotator "NA"]
[PlyCount "105"]
[EventDate "2018.06.21"]
[EventCountry "BLR"]
[SourceTitle "playchess.com"]
[Source "ChessBase"]
[SourceQuality "1"]
[TimeControl "900+10"]

1. e4 {[%emt 0:00:00]} c6 {[%emt 0:00:01]} 2. d4 {[%emt 0:00:00]} d5 {[%emt 0:00:01]} 3. Nd2 {[%emt 0:00:01]} Nf6 {[%emt 0:00:03]} 4. e5 {[%emt 0:00:16]} Nfd7 {[%emt 0:00:01]} 5. Ngf3 {[%emt 0:02:33]} e6 {[%emt 0:00:02]} 6. Bd3 {[%emt 0:00:31]} c5 {[%emt 0:00:03]} 7. c3 {[%emt 0:00:13]} Nc6 {[%emt 0:00:09]} 8. O-O {[%emt 0:00:46]} Be7 {[%emt 0:00:04]} 9. a3 {[%emt 0:00:47]} a5 {[%emt 0:00:31]} 10. b3 {[%emt 0:02:59]} Qb6 {[%emt 0:00:18]} 11. Bb2 {[%emt 0:00:04]} c4 {[%emt 0:02:04]} 12. Be2 {[%emt 0:00:53]} cxb3 {[%emt 0:00:13]} 13. Qxb3 {[%emt 0:00:02]} Qxb3 {[%emt 0:01:45]} 14. Nxb3 {[%emt 0:00:02]} Nb6 {[%emt 0:00:02]} 15. a4 {[%emt 0:01:41]} Nc4 {[%emt 0:00:46]} 16. Bxc4 {[%emt 0:00:31]} dxc4 {[%emt 0:00:02]} 17. Nbd2 {[%emt 0:00:10]} b6 {[%emt 0:00:03]} 18. Nxc4 {[%emt 0:02:00]} Ba6 {[%emt 0:00:01]} 19. Nfd2 {[%emt 0:00:01]} O-O {[%emt 0:06:20]} 20. Rfb1 {[%emt 0:00:55]} Rab8 {[%emt 0:01:27]} 21. Ba3 {[%emt 0:00:16]} Rfc8 {[%emt 0:00:16]} 22. Rxb6 {[%emt 0:01:40]} Bxc4 {[%emt 0:00:32]} 23. Nxc4 {[%emt 0:00:11]} Bxa3 {[%emt 0:00:16]} 24. Rxa3 {[%emt 0:00:48]} Nxd4 {[%emt 0:00:04]} 25. Rxb8 {[%emt 0:00:35]} Rxb8 {[%emt 0:00:02]} 26. g3 {[%emt 0:00:20]} Rb1+ {[%emt 0:02:29]} 27. Kg2 {[%emt 0:00:02]} Nc2 {[%emt 0:00:01]} 28. Ra2 {[%emt 0:00:11]} Ne1+ {[%emt 0:00:02]} 29. Kh3 {[%emt 0:00:07]} Nf3 {[%emt 0:00:02]} 30. Nxa5 {[%emt 0:00:35]} Nxe5 {[%emt 0:00:33]} 31. f4 {[%emt 0:00:20]} Nf3 {[%emt 0:01:02]} 32. Nc4 {[%emt 0:00:38]} h5 {[%emt 0:00:02]} 33. a5 {[%emt 0:00:03]} g5 {[%emt 0:00:01]} 34. fxg5 {[%emt 0:00:04]} Nxg5+ {[%emt 0:00:01]} 35. Kg2 {[%emt 0:00:02]} Rb7 {[%emt 0:00:36]} 36. a6 {[%emt 0:00:01]} Ra7 {[%emt 0:00:00]} 37. Ne5 {[%emt 0:00:07]} Ne4 {[%emt 0:00:07]} 38. Nc6 {[%emt 0:00:02]} Ra8 {[%emt 0:01:09]} 39. a7 {[%emt 0:00:02]} Nc5 {[%emt 0:00:04]} 40. Rb2 {[%emt 0:00:06]} Na6 {[%emt 0:00:08]} 41. Rb6 {[%emt 0:00:09]} Nc7 {[%emt 0:00:04]} 42. Rb7 {[%emt 0:00:11]} Na6 {[%emt 0:00:01]} 43. Rb8+ {[%emt 0:00:25]} Nxb8 {[%emt 0:00:03]} 44. axb8=Q+ {[%emt 0:00:03]} Rxb8 {[%emt 0:00:16]} 45. Nxb8 {[%emt 0:00:02]} Kf8 {[%emt 0:00:01]} 46. Nc6 {[%emt 0:00:03]} Ke8 {[%emt 0:00:02]} 47. Kf3 {[%emt 0:00:07]} f6 {[%emt 0:00:01]} 48. Ke4 {[%emt 0:00:04]} Kd7 {[%emt 0:00:01]} 49. Nd4 {[%emt 0:00:02]} Kd6 {[%emt 0:00:01]} 50. c4 {[%emt 0:00:38]} e5 {[%emt 0:00:07]} 51. Nf3 {[%emt 0:00:25]} Ke6 {[%emt 0:00:02]} 52. Nxe5 {[%emt 0:00:08]} fxe5 {[%emt 0:00:03]} 53. c5 {[%emt 0:00:02]} 1-0

[Event "Kupreichik Memorial Open 2018"]
[Site "Minsk"]
[Date "2018.06.22"]
[Round "6"]
[White "Sihite, Chelsie Monica Igne"]
[Black "Zhukovskij, Viktor"]
[Result "1/2-1/2"]
[ECO "B31"]
[WhiteElo "2236"]
[BlackElo "1973"]
[Annotator "NA"]
[PlyCount "108"]
[EventDate "2018.06.21"]
[EventCountry "BLR"]
[SourceTitle "playchess.com"]
[Source "ChessBase"]
[SourceQuality "1"]
[TimeControl "900+10"]

1. e4 {[%emt 0:00:00]} c5 {[%emt 0:00:01]} 2. Nf3 {[%emt 0:00:00]} Nc6 {[%emt 0:00:02]} 3. Bb5 {[%emt 0:00:00]} g6 {[%emt 0:00:05]} 4. O-O {[%emt 0:00:00]} Bg7 {[%emt 0:00:02]} 5. Re1 {[%emt 0:00:02]} Nf6 {[%emt 0:00:05]} 6. h3 {[%emt 0:00:11]} O-O {[%emt 0:00:06]} 7. e5 {[%emt 0:00:16]} Nd5 {[%emt 0:00:18]} 8. Nc3 {[%emt 0:00:05]} Nc7 {[%emt 0:02:13]} 9. a4 {[%emt 0:00:31]} Ne6 {[%emt 0:01:39]} 10. d3 {[%emt 0:00:20]} b6 {[%emt 0:00:21]} 11. Bc4 {[%emt 0:02:28]} Bb7 {[%emt 0:02:28]} 12. Nd5 {[%emt 0:00:39]} Nc7 {[%emt 0:00:13]} 13. Bg5 {[%emt 0:00:20]} h6 {[%emt 0:00:47]} 14. Bh4 {[%emt 0:00:13]} Re8 {[%emt 0:03:08]} 15. Nxc7 {[%emt 0:00:45]} Qxc7 {[%emt 0:00:04]} 16. Bg3 {[%emt 0:00:06]} e6 {[%emt 0:01:13]} 17. c3 {[%emt 0:00:38]} Na5 {[%emt 0:00:28]} 18. Ba2 {[%emt 0:00:01]} a6 {[%emt 0:00:18]} 19. b4 {[%emt 0:00:34]} Nc6 {[%emt 0:00:33]} 20. Rc1 {[%emt 0:00:16]} Rac8 {[%emt 0:00:08]} 21. Qd2 {[%emt 0:00:45]} cxb4 {[%emt 0:00:18]} 22. cxb4 {[%emt 0:00:13]} Qb8 {[%emt 0:00:01]} 23. d4 {[%emt 0:00:32]} Ne7 {[%emt 0:00:07]} 24. Qd3 {[%emt 0:00:13]} Rxc1 {[%emt 0:00:54]} 25. Rxc1 {[%emt 0:00:04]} Rc8 {[%emt 0:00:01]} 26. Bf4 {[%emt 0:01:52]} Rxc1+ 27. Bxc1 {[%emt 0:00:02]} Qc8 {[%emt 0:00:16]} 28. Bd2 {[%emt 0:00:28]} Qc6 {[%emt 0:00:15]} 29. b5 {[%emt 0:00:10]} axb5 {[%emt 0:00:15]} 30. axb5 {[%emt 0:00:01]} Qc8 {[%emt 0:00:28]} 31. Bb3 {[%emt 0:00:42]} Qa8 {[%emt 0:00:20]} 32. Ne1 {[%emt 0:00:01]} Nd5 {[%emt 0:00:19]} 33. Qb1 {[%emt 0:00:37]} Qb8 {[%emt 0:00:03]} 34. Bc2 {[%emt 0:00:46]} d6 {[%emt 0:00:18]} 35. f4 {[%emt 0:00:19]} dxe5 {[%emt 0:00:14]} 36. fxe5 {[%emt 0:00:04]} Qc8 {[%emt 0:00:06]} 37. Bd3 {[%emt 0:00:07]} Qd7 {[%emt 0:00:19]} 38. Kf1 {[%emt 0:02:03]} Ne7 {[%emt 0:00:04]} 39. Bc3 {[%emt 0:00:37]} Nf5 {[%emt 0:00:10]} 40. Qb4 {[%emt 0:01:21]} Ne3+ {[%emt 0:01:05]} 41. Kf2 {[%emt 0:00:01]} Nd5 {[%emt 0:00:02]} 42. Qc4 {[%emt 0:00:12]} Nxc3 {[%emt 0:00:22]} 43. Qxc3 {[%emt 0:00:01]} f6 44. Nf3 {[%emt 0:00:25]} f5 {[%emt 0:01:34]} 45. Bc4 {[%emt 0:00:11]} Kf7 {[%emt 0:00:11]} 46. Qe3 {[%emt 0:00:30]} Bd5 {[%emt 0:00:12]} 47. Be2 {[%emt 0:00:12]} Qc7 {[%emt 0:00:08]} 48. g4 {[%emt 0:00:05]} Qc2 {[%emt 0:00:16]} 49. Ne1 {[%emt 0:00:38]} Qe4 {[%emt 0:00:13]} 50. Bf3 {[%emt 0:00:02]} Qxe3+ {[%emt 0:00:06]} 51. Kxe3 {[%emt 0:00:01]} Bc4 {[%emt 0:00:15]} 52. Be2 {[%emt 0:00:10]} Bd5 {[%emt 0:00:04]} 53. Bf3 {[%emt 0:00:01]} Bc4 {[%emt 0:00:02]} 54. Be2 {[%emt 0:00:01]} Bd5 {[%emt 0:00:02]} 1/2-1/2

[Event "Kupreichik Memorial Open 2018"]
[Site "Minsk"]
[Date "2018.06.22"]
[Round "6"]
[White "Nigmatov, Ortik"]
[Black "Ilyuchyk, Yana"]
[Result "1-0"]
[ECO "B63"]
[WhiteElo "2210"]
[BlackElo "1971"]
[Annotator "NA"]
[PlyCount "69"]
[EventDate "2018.06.21"]
[EventCountry "BLR"]
[SourceTitle "playchess.com"]
[Source "ChessBase"]
[SourceQuality "1"]
[TimeControl "900+10"]

1. e4 {[%emt 0:00:00]} c5 {[%emt 0:00:01]} 2. Nf3 {[%emt 0:00:00]} Nc6 {[%emt 0:00:02]} 3. d4 {[%emt 0:00:00]} cxd4 4. Nxd4 {[%emt 0:00:00]} Nf6 {[%emt 0:00:03]} 5. Nc3 {[%emt 0:00:00]} d6 {[%emt 0:00:02]} 6. Bg5 {[%emt 0:00:03]} e6 {[%emt 0:00:03]} 7. Qd2 {[%emt 0:00:04]} Be7 {[%emt 0:00:03]} 8. O-O-O {[%emt 0:00:21]} O-O {[%emt 0:00:03]} 9. f3 {[%emt 0:00:21]} Nxd4 {[%emt 0:00:11]} 10. Qxd4 {[%emt 0:00:03]} a6 {[%emt 0:00:23]} 11. g4 {[%emt 0:00:21]} b5 {[%emt 0:00:27]} 12. h4 {[%emt 0:01:52]} Qa5 {[%emt 0:01:09]} 13. a3 {[%emt 0:00:51]} Rb8 {[%emt 0:02:43]} 14. Bd2 {[%emt 0:01:57]} Qc7 {[%emt 0:00:53]} 15. h5 {[%emt 0:00:46]} Nd7 {[%emt 0:02:16]} 16. g5 {[%emt 0:00:03]} Qc5 {[%emt 0:00:09]} 17. Qxc5 {[%emt 0:00:44]} dxc5 {[%emt 0:00:04]} 18. Bf4 {[%emt 0:00:21]} Ra8 {[%emt 0:02:00]} 19. Rh2 {[%emt 0:00:19]} Nb6 {[%emt 0:01:09]} 20. Bc7 {[%emt 0:01:12]} Nd7 {[%emt 0:01:32]} 21. f4 {[%emt 0:00:26]} Nb8 {[%emt 0:01:03]} 22. e5 {[%emt 0:03:21]} Nc6 {[%emt 0:00:56]} 23. Bg2 {[%emt 0:00:36]} Ra7 {[%emt 0:00:01]} 24. Bd6 {[%emt 0:00:50]} Nd4 {[%emt 0:00:34]} 25. b4 {[%emt 0:00:05]} cxb4 {[%emt 0:00:22]} 26. axb4 {[%emt 0:00:07]} Nf5 {[%emt 0:00:23]} 27. Bxe7 {[%emt 0:01:20]} Rxe7 {[%emt 0:00:03]} 28. Rh3 {[%emt 0:01:22]} Bb7 {[%emt 0:00:12]} 29. Bxb7 {[%emt 0:00:18]} Rxb7 {[%emt 0:00:01]} 30. Ne4 {[%emt 0:00:03]} Rc7 {[%emt 0:00:29]} 31. h6 {[%emt 0:00:13]} Rfc8 {[%emt 0:01:13]} 32. Rhd3 {[%emt 0:00:59]} gxh6 {[%emt 0:00:39]} 33. Nf6+ {[%emt 0:00:29]} Kf8 {[%emt 0:00:18]} 34. Rd8+ {[%emt 0:00:11]} Ke7 {[%emt 0:00:32]} 35. Ng8# {[%emt 0:00:02]} 1-0

[Event "Kupreichik Memorial Open 2018"]
[Site "Minsk"]
[Date "2018.06.22"]
[Round "6"]
[White "Sarbay, Aleksandr"]
[Black "Laptii, Nazar"]
[Result "0-1"]
[ECO "B01"]
[WhiteElo "2183"]
[BlackElo "1915"]
[Annotator "NA"]
[PlyCount "68"]
[EventDate "2018.06.21"]
[EventCountry "BLR"]
[SourceTitle "playchess.com"]
[Source "ChessBase"]
[SourceQuality "1"]
[TimeControl "900+10"]

1. e4 {[%emt 0:00:00]} d5 {[%emt 0:00:01]} 2. exd5 {[%emt 0:00:00]} Nf6 {[%emt 0:00:01]} 3. d4 {[%emt 0:00:17]} Nxd5 {[%emt 0:00:03]} 4. Nf3 {[%emt 0:00:01]} Bf5 {[%emt 0:00:04]} 5. Bd3 {[%emt 0:00:26]} Bxd3 {[%emt 0:00:02]} 6. Qxd3 {[%emt 0:00:02]} e6 {[%emt 0:00:08]} 7. Qb5+ {[%emt 0:01:26]} Nc6 {[%emt 0:00:15]} 8. O-O {[%emt 0:00:44]} a6 {[%emt 0:00:23]} 9. Qe2 {[%emt 0:00:18]} Be7 {[%emt 0:00:18]} 10. c4 {[%emt 0:00:18]} Nb6 {[%emt 0:00:18]} 11. Be3 {[%emt 0:01:54]} O-O {[%emt 0:00:33]} 12. Nc3 {[%emt 0:00:02]} h6 {[%emt 0:02:50]} 13. d5 {[%emt 0:01:26]} exd5 {[%emt 0:00:45]} 14. Bxb6 {[%emt 0:00:02]} cxb6 {[%emt 0:00:08]} 15. cxd5 {[%emt 0:00:33]} Na7 {[%emt 0:00:34]} 16. Nd4 {[%emt 0:02:21]} g6 {[%emt 0:02:27]} 17. Rad1 {[%emt 0:02:58]} Nc8 {[%emt 0:00:42]} 18. Rfe1 {[%emt 0:01:22]} Bf6 {[%emt 0:00:15]} 19. Ne4 {[%emt 0:00:21]} Nd6 {[%emt 0:00:28]} 20. Ne6 {[%emt 0:00:56]} Qe7 {[%emt 0:05:58]} 21. Nxf6+ {[%emt 0:00:26]} Qxf6 {[%emt 0:00:02]} 22. Nxf8 Kxf8 {[%emt 0:00:01]} 23. Qe3 {[%emt 0:00:39]} Nf5 {[%emt 0:00:21]} 24. Qa3+ {[%emt 0:00:17]} Nd6 {[%emt 0:01:25]} 25. Re6 {[%emt 0:00:23]} fxe6 {[%emt 0:00:12]} 26. Qxd6+ {[%emt 0:00:02]} Qe7 {[%emt 0:00:34]} 27. Qxb6 Rd8 {[%emt 0:00:35]} 28. d6 {[%emt 0:00:32]} Qd7 {[%emt 0:00:06]} 29. Qd4 {[%emt 0:00:10]} Qg7 {[%emt 0:00:17]} 30. Qf4+ {[%emt 0:00:11]} Kg8 {[%emt 0:00:02]} 31. Rc1 {[%emt 0:01:31]} e5 {[%emt 0:00:19]} 32. Qc4+ {[%emt 0:00:19]} Kh8 {[%emt 0:00:01]} 33. Qe6 {[%emt 0:00:11]} Rd7 {[%emt 0:00:15]} 34. h4 {[%emt 0:00:19]} h5 {[%emt 0:00:13]} 0-1

[Event "Kupreichik Memorial Open 2018"]
[Site "Minsk"]
[Date "2018.06.22"]
[Round "6"]
[White "Savolainen, Lev P"]
[Black "Talma, Sergei"]
[Result "1-0"]
[ECO "D53"]
[WhiteElo "2163"]
[BlackElo "1858"]
[Annotator "NA"]
[PlyCount "61"]
[EventDate "2018.06.21"]
[EventCountry "BLR"]
[SourceTitle "playchess.com"]
[Source "ChessBase"]
[SourceQuality "1"]
[TimeControl "900+10"]

1. d4 {[%emt 0:00:00]} d5 {[%emt 0:00:02]} 2. c4 {[%emt 0:00:00]} e6 {[%emt 0:00:02]} 3. Nc3 {[%emt 0:00:00]} Nf6 {[%emt 0:00:02]} 4. Bg5 {[%emt 0:00:00]} Be7 {[%emt 0:00:01]} 5. cxd5 {[%emt 0:00:03]} Nxd5 {[%emt 0:00:05]} 6. Bxe7 {[%emt 0:00:02]} Qxe7 {[%emt 0:00:03]} 7. Rc1 {[%emt 0:00:03]} Nxc3 {[%emt 0:00:14]} 8. Rxc3 {[%emt 0:00:01]} O-O {[%emt 0:00:33]} 9. Nf3 {[%emt 0:00:05]} Rd8 {[%emt 0:00:41]} 10. e4 {[%emt 0:00:23]} b6 {[%emt 0:01:10]} 11. Qc2 {[%emt 0:00:17]} c5 {[%emt 0:00:16]} 12. dxc5 {[%emt 0:00:48]} bxc5 {[%emt 0:00:18]} 13. Bb5 {[%emt 0:02:59]} a6 {[%emt 0:05:39]} 14. Ba4 {[%emt 0:00:30]} Bd7 {[%emt 0:00:30]} 15. O-O {[%emt 0:01:17]} Bxa4 {[%emt 0:00:24]} 16. Qxa4 {[%emt 0:00:03]} Nd7 {[%emt 0:00:04]} 17. Qc2 {[%emt 0:02:22]} e5 {[%emt 0:01:07]} 18. h3 {[%emt 0:00:41]} f6 {[%emt 0:00:51]} 19. Rd1 {[%emt 0:00:06]} Nf8 {[%emt 0:00:23]} 20. Rxd8 {[%emt 0:00:11]} Rxd8 {[%emt 0:00:04]} 21. Rxc5 {[%emt 0:00:10]} Rd1+ {[%emt 0:01:20]} 22. Kh2 {[%emt 0:00:58]} Qd7 {[%emt 0:01:25]} 23. Qc4+ {[%emt 0:01:10]} Qe6 {[%emt 0:01:13]} 24. Qxe6+ {[%emt 0:00:29]} Nxe6 {[%emt 0:00:01]} 25. Rc6 {[%emt 0:00:04]} Nf4 {[%emt 0:00:56]} 26. Rxa6 {[%emt 0:00:59]} Nd3 {[%emt 0:00:02]} 27. Rb6 {[%emt 0:03:30]} Nxf2 {[%emt 0:01:03]} 28. a4 {[%emt 0:00:33]} h5 {[%emt 0:00:34]} 29. g3 {[%emt 0:00:29]} Nxe4 {[%emt 0:00:15]} 30. a5 {[%emt 0:00:09]} Rf1 31. a6 {time} 1-0